Cogmind - Beta 11.1 @@@ ROGUE MODE // 2022.06.29 @ 04:55:35 Player: Demise Result: Destroyed by C-40 Crusher with Compactor Performance ------------- Evolutions (4) 2000 Regions Visited (6) 1200 Robots Destroyed (41) 205 Value Destroyed (490) 490 Prototype IDs (3) 60 Alien Tech Used (0) 0 Bonus (-168) -168 TOTAL SCORE: 3787 Bonus ------- Friendly Fire -168 Cogmind --------- Core Integrity 0/850 Matter 284/300 Energy 99/100 System Corruption 3% Temperature Cool (0) Movement Core (50) Location -6/Waste Parts ------- > --- POWER (1) -------- (None) > --- PROPULSION (2) --- (None) > --- UTILITY (10) ----- (None) > --- WEAPON (2) ------- (None) > --- INVENTORY (5) ---- Small Storage Unit Improved Trap Scanner Long-range Sensor Array Mini Drone Bay (3/3) Improved Grenade Launcher Peak State ------------ > --- POWER ------------ (None) > --- PROPULSION ------- (None) > --- UTILITY ---------- Improved Trap Scanner Visual Processing Unit Advanced Signal Interpreter Seismic Detector Transport Network Coupler Core Analyzer Hacking Suite Improved System Shield Authchip [Processor] Improved Corruption Screen > --- WEAPON ----------- (None) > --- INVENTORY -------- Small Storage Unit Mini Drone Bay Improved Grenade Launcher Power Maul [Rating: 37] Favorites ----------- Power Light Ion Engine Engine Light Ion Engine Propulsion None Utility Hacking Suite Device Seismic Detector Processor Visual Processing Unit Hackware Hacking Suite Weapon Blade Saw Energy Gun Medium Laser Energy Cannon Improved EM Pulse Cannon Ballistic Gun Light Assault Rifle Launcher Improved Grenade Launcher Impact Weapon Power Maul Slashing Weapon Blade Saw Build | -11 -10 -9 -8 -7 -6 -6 ------- Run | Scr Mat Mat Mat Fac Fac Was Slots Evolved 8 | . . 2 2 2 2 . Power . | . . . . . . . Propulsion . | . . . . . . . Utility 8 | . . 2 2 2 2 . Weapon . | . . . . . . . Parts Attached 49 | 3 . 2 21 7 15 1 Power 5 | . . . 2 3 . . Engine 5 | . . . 2 3 . . Core . | . . . . . . . Reactor . | . . . . . . . Propulsion . | . . . . . . . Treads . | . . . . . . . Leg . | . . . . . . . Wheel . | . . . . . . . Hover . | . . . . . . . Flight . | . . . . . . . Utility 22 | 1 . . 7 4 9 1 Device 11 | 1 . . 3 1 5 1 Storage . | . . . . . . . Processor 6 | . . . 2 1 3 . Hackware 5 | . . . 2 2 1 . Protection . | . . . . . . . Artifact . | . . . . . . . Weapon 22 | 2 . 2 12 . 6 . Energy Gun 1 | 1 . . . . . . Energy Cannon 1 | . . . . . 1 . Ballistic Gun 2 | 1 . 1 . . . . Ballistic Cannon . | . . . . . . . Launcher 3 | . . 1 1 . 1 . Special Weapon . | . . . . . . . Impact Weapon 8 | . . . 4 . 4 . Slashing Weapon 7 | . . . 7 . . . Piercing Weapon . | . . . . . . . Special Melee Weapon . | . . . . . . . Unidentified Prototypes 1 | . . . . 1 . . Corrupted Parts 1 | . . . . 1 . . System Corruption 3 | . . . . 3 . . Parts Lost 19 | . . . 5 4 8 2 Power 2 | . . . 1 1 . . Propulsion . | . . . . . . . Utility 12 | . . . 2 2 6 2 Weapon 5 | . . . 2 1 2 . Highest Loss Streak 5 | . . . 4 4 5 2 To Critical Strikes . | . . . . . . . Average Slot Usage (%) 47 | . 28 22 38 60 56 19 Engine 1 | . . . 1 3 . . Device 7 | . 14 11 8 7 5 7 Processor 17 | . . . 6 22 29 8 Hackware 13 | . . . 9 19 16 3 Impact Weapon 1 | . . . 2 . 3 . Slashing Weapon 4 | . . . 7 6 . . Naked Turns 18 | . . . . . . 18 Heaviest Build 9 | 3 2 2 9 6 4 4 Greatest Support 9 | 3 3 3 9 9 3 3 Greatest Overweight (x) 2 | . . . 2 . 1 1 Average Overweight (x) . | . . . . . . . Largest Inventory Capacity 5 | 5 5 5 5 5 5 5 Average Capacity 5 | 5 5 5 5 5 5 5 Most Carried 5 | 3 5 5 5 5 5 5 Average Carried 4 | 1 4 4 4 4 3 4 Final Capacity 5 | 5 5 5 5 5 5 5 Final Carried 5 | 3 5 5 5 4 4 5 Class Distribution -------------------- 51% | Hacker-Mutant 48% | Mutant Dominant Class ---------------- Mutant | -10/Materials Mutant | -9/Materials Mutant | -8/Materials Hacker-Mutant | -7/Factory Hacker-Mutant | -6/Factory Mutant | -6/Waste Resources | -11 -10 -9 -8 -7 -6 -6 ----------- Run | Scr Mat Mat Mat Fac Fac Was Matter Collected 714 | 235 . . 254 76 149 . Remotely . | . . . . . . . Salvage Created 1147 | 82 . 26 462 218 359 . Parts 71 | 7 . 4 24 27 9 . Haulers Intercepted 4 | . . . 2 2 . . Recyclers Shooed 4 | . . . 3 . 1 . Parts Field Recycled . | . . . . . . . Retrieved Matter . | . . . . . . . Parts Self-Destructed . | . . . . . . . Prevented . | . . . . . . . Kills | -11 -10 -9 -8 -7 -6 -6 ------- Run | Scr Mat Mat Mat Fac Fac Was Combat Hostiles Destroyed 13 | . . 3 5 . 5 . Melee 1 | . . . 1 . . . AOE 10 | . . 3 4 . 3 . Classes Destroyed 8 | 1 . 1 5 1 . . Worker 4 | . . . 1 3 . . Builder 3 | . . . . 1 2 . Tunneler 9 | 3 . . 2 3 1 . Hauler 4 | . . . 2 2 . . Recycler 5 | . . . 3 . 2 . Operator 2 | . . . 2 . . . Swarmer 13 | . . 3 4 . 6 . Sentry 1 | . . . 1 . . . Best Kill Streak 5 | 2 . 3 5 2 3 . Combat Bots Only 4 | . . 3 4 . 2 . Max Kills in Single Turn 3 | 1 . 3 3 1 3 . Gunslinging . | . . . . . . . Exploded 3 | . . 3 2 . 1 . Melee 1 | . . . 1 . . . Uniques/NPCs Destroyed . | . . . . . . . Combat | -11 -10 -9 -8 -7 -6 -6 -------- Run | Scr Mat Mat Mat Fac Fac Was Damage Taken 2143 | . 10 34 419 469 1050 161 Core 1390 | . 10 . 191 325 703 161 Absorbed by Shields 17 | . . . . 17 . . Regen/Repaired (Parts) 70 | . . . 32 . 38 . Core Remaining (%) 82 | 100 96 100 65 53 . . Volleys Fired 28 | 15 . 7 3 . 3 . Largest 2 | 2 . 1 1 . 1 . Hottest 70 | 70 . 30 36 . 69 . Shots Fired 43 | 30 . 7 3 . 3 . Gun 36 | 30 . 6 . . . . Cannon 1 | . . . . . 1 . Launcher 6 | . . 1 3 . 2 . Special . | . . . . . . . Kinetic 21 | 15 . 6 . . . . Thermal 15 | 15 . . . . . . Explosive 6 | . . 1 3 . 2 . Electromagnetic 1 | . . . . . 1 . Robot Hit Streak 6 | 4 . 6 2 . . . Robot Miss Streak 2 | 2 . . 1 . 1 . Penetration Max . | . . . . . . . Secondary Targets . | . . . . . . . Shots Hit Robots 92 | 19 . 5 40 21 7 . Core Hits 44 | 5 . 6 16 9 8 . Critical Kills . | . . . . . . . Critical Parts Destroyed . | . . . . . . . Critical Strikes 9 | 1 . . 7 1 . . Burn 1 | 1 . . . . . . Sever 8 | . . . 7 1 . . Melee Attacks 97 | . . . 57 25 15 . Impact 27 | . . . 12 . 15 . Slashing 70 | . . . 45 25 . . Piercing . | . . . . . . . Sneak Attacks 27 | . . . 14 11 2 . Combat Hostiles . | . . . . . . . Follow-up Attacks 3 | . . . 3 . . . Damage Inflicted 3308 | 218 . 207 1284 558 1041 . Guns 265 | 218 . 47 . . . . Cannons . | . . . . . . . Explosions 1054 | . . 160 286 . 608 . Melee 1933 | . . . 998 539 396 . Ramming 56 | . . . . 19 37 . Kinetic 103 | 56 . 47 . . . . Thermal 406 | 162 . . . . 244 . Explosive 810 | . . 160 286 . 364 . Electromagnetic . | . . . . . . . Impact 525 | . . . 129 . 396 . Slashing 1408 | . . . 869 539 . . Piercing . | . . . . . . . Highest Corruption 3 | . . . . 3 1 3 Average Corruption 1 | . . . . 3 1 1 Corruption Purged . | . . . . . . . Corruption Blocked 4 | . . . . . 4 . Effects 1 | . . . . . 1 . Matter Fused 1 | . . . . . 1 . Overload Shots . | . . . . . . . Overflow Damage 464 | . . . 144 16 304 . Projectiles . | . . . . . . . Explosions 146 | . . . . . 146 . Melee 318 | . . . 144 16 158 . Knockbacks 5 | . . . . 1 4 . Impact 5 | . . . . 1 4 . Kinetic . | . . . . . . . Secondary . | . . . . . . . Self-Inflicted Damage 157 | . . . 16 8 133 . Shots 4 | . . . 2 . 2 . Rammed 14 | . . . . 6 7 1 Targets Rammed 14 | . . . . 6 7 1 Kicked . | . . . . . . . Crushed . | . . . . . . . Highest Temperature 40 | 40 . . . 23 21 . Average Temperature 19 | 19 . . . 23 19 . Received Heat Transfer 510 | . 6 6 162 252 84 . Siege Activations . | . . . . . . . Robots Corrupted . | . . . . . . . Combat Hostiles . | . . . . . . . Parts Fried 6 | . . . 1 . 5 . Impact Corruptions 9 | . . . 1 . 8 . Robots Melted . | . . . . . . . Combat Hostiles . | . . . . . . . Parts Melted . | . . . . . . . Heat Transferred 755 | 555 . . . . 200 . Parts Sabotaged . | . . . . . . . Parts Stolen . | . . . . . . . Parts Stripped . | . . . . . . . Power Chain Reactions . | . . . . . . . Missiles Intercepted . | . . . . . . . Alert | -11 -10 -9 -8 -7 -6 -6 ------- Run | Scr Mat Mat Mat Fac Fac Was Peak Influence 409 | 15 39 221 409 275 321 112 Initial 185 | . 9 16 92 185 39 112 Average 165 | 5 11 75 232 204 120 107 Maximum Alert Level 2 | . . 1 2 1 1 . Low Security (%) 59 | 100 100 96 36 32 83 100 Level 1 38 | . . 3 55 67 16 . Level 2 2 | . . . 8 . . . Level 3 . | . . . . . . . Level 4 . | . . . . . . . Level 5 . | . . . . . . . High Security . | . . . . . . . Max Security . | . . . . . . . Squads Dispatched 15 | . 1 . 3 6 5 . Investigation 6 | . 1 . . 3 2 . Extermination 1 | . . . . . 1 . Reinforcement 7 | . . . 2 3 2 . Assault . | . . . . . . . Garrison 1 | . . . 1 . . . Intercept . | . . . . . . . Searches Triggered . | . . . . . . . Construction Impeded . | . . . . . . . Haulers Reinforced 1 | . . . . 1 . . Active Scanning Responses . | . . . . . . . Cargo Convoy Interrupts . | . . . . . . . Stealth | -11 -10 -9 -8 -7 -6 -6 --------- Run | Scr Mat Mat Mat Fac Fac Was Distress Signals 6 | . . 1 3 1 1 . Communications Jammed . | . . . . . . . Distress Signals . | . . . . . . . Times Spotted 79 | . 2 8 27 14 22 6 Peak Tracking Total 13 | . 2 6 6 13 8 6 Tactical Retreats 14 | . . 1 8 1 4 . Traps | -11 -10 -9 -8 -7 -6 -6 ------- Run | Scr Mat Mat Mat Fac Fac Was Traps Triggered 5 | . . . . 1 4 . Indirectly . | . . . . . . . Trap Hack Attempts . | . . . . . . . Triggered . | . . . . . . . Disarmed . | . . . . . . . Reprogrammed . | . . . . . . . Reused . | . . . . . . . Traps Extracted . | . . . . . . . Installed . | . . . . . . . Triggered . | . . . . . . . Machines | -11 -10 -9 -8 -7 -6 -6 ---------- Run | Scr Mat Mat Mat Fac Fac Was Machines Disabled 8 | . . 1 1 . 6 . Max in Single Turn 6 | . . 1 1 . 6 . Machines Sabotaged . | . . . . . . . Garrisons Compromised . | . . . . . . . Overloaded Fab Kills . | . . . . . . . Hacking | -11 -10 -9 -8 -7 -6 -6 --------- Run | Scr Mat Mat Mat Fac Fac Was Machines Accessed 23 | . 2 1 8 5 7 . Terminals 13 | . . 1 5 4 3 . Fabricators 1 | . . . . 1 . . Repair Stations 2 | . . . 1 . 1 . Recycling Units 6 | . 2 . 2 . 2 . Scanalyzers . | . . . . . . . Garrison Access 1 | . . . . . 1 . Total Hacks 57 | . 5 3 15 15 19 . Successful 28 | . 3 1 10 6 8 . Failed 29 | . 2 2 5 9 11 . Catastrophic 4 | . . . . 1 3 . Database Lockouts . | . . . . . . . Manual 34 | . 1 3 10 12 8 . Terminals 38 | . . 3 10 14 11 . Fabricators 1 | . . . . 1 . . Repair Stations 5 | . . . 2 . 3 . Recycling Units 11 | . 5 . 3 . 3 . Scanalyzers . | . . . . . . . Garrison Access 2 | . . . . . 2 . Terminal Hacks 6 | . . . 1 2 3 . Part Schematic 1 | . . . . . 1 . Robot Schematic 1 | . . . . . 1 . Prototype ID Bank 1 | . . . 1 . . . Level Access Points 1 | . . . . 1 . . Terminal Index 2 | . . . . 1 1 . Fabricator Hacks . | . . . . . . . Repair Station Hacks 4 | . . . 2 . 2 . Scan Component 2 | . . . 1 . 1 . Repair 2 | . . . 1 . 1 . Recycling Unit Hacks 6 | . 2 . 2 . 2 . Retrieve Components 6 | . 2 . 2 . 2 . Scanalyzer . | . . . . . . . Garrison Access Hacks . | . . . . . . . Unauthorized Hacks 12 | . 1 1 5 4 1 . Terminals 9 | . . 1 4 3 1 . Track 1 | . . . 1 . . . Assimilate 1 | . . . 1 . . . Botnet 6 | . . . 2 3 1 . Operators 1 | . . 1 . . . . Fabricators 1 | . . . . 1 . . Fabnet 1 | . . . . 1 . . Repair Stations . | . . . . . . . Recycling Units 2 | . 1 . 1 . . . Recyclers 1 | . . . 1 . . . Tunnel 1 | . 1 . . . . . Scanalyzers . | . . . . . . . Garrison Access . | . . . . . . . Data Cores Recovered . | . . . . . . . Used . | . . . . . . . Hacking Detections 18 | . . 1 5 5 7 . Full Trace Events 4 | . . . . 3 1 . Feedback Events . | . . . . . . . Feedback Blocked . | . . . . . . . Robot Schematics Acquired 1 | . . . . . 1 . Robots Built . | . . . . . . . Authchips . | . . . . . . . Time . | . . . . . . . Total Robot Build Rating . | . . . . . . . Part Schematics Acquired 1 | . . . . . 1 . Parts Built . | . . . . . . . Authchips . | . . . . . . . Time . | . . . . . . . Total Part Build Rating . | . . . . . . . Parts Repaired 2 | . . . 1 . 1 . Time 57 | . . . 38 . 19 . Parts Recycled . | . . . . . . . Recycled Matter . | . . . . . . . Retrieved Matter . | . . . . . . . Retrieved Components 12 | . 3 . 3 . 6 . Parts Scanalyzed . | . . . . . . . Part Schematics Acquired . | . . . . . . . Parts Damaged . | . . . . . . . Bothacking | -11 -10 -9 -8 -7 -6 -6 ------------ Run | Scr Mat Mat Mat Fac Fac Was Used RIF Installer . | . . . . . . . Robots Hacked 2 | . . . . . 2 . Non-combat . | . . . . . . . Combat 2 | . . . . . 2 . Robot Hacks Applied . | . . . . . . . Relay Couplers Released . | . . . . . . . Fabnet Peak Effective % 3 | . . . . . 3 3 Autooverrided 2 | . . . . . 2 . Robots Rewired . | . . . . . . . Allies Hacked . | . . . . . . . Hacks Repelled . | . . . . . . . Allies | -11 -10 -9 -8 -7 -6 -6 -------- Run | Scr Mat Mat Mat Fac Fac Was Total Allies 3 | . . . 1 . 2 . Largest Group 1 | . . . 1 . 1 . Highest-Rated Group 29 | . . . 10 . 29 . Highest-Rated Ally 29 | . . . 10 . 29 . Total Orders . | . . . . . . . Ally Attacks 2 | . . . . . 2 . Total Damage 40 | . . . . . 40 . Kills . | . . . . . . . Allies Corrupted . | . . . . . . . Allies Melted . | . . . . . . . Intel | -11 -10 -9 -8 -7 -6 -6 ------- Run | Scr Mat Mat Mat Fac Fac Was Robot Analysis Total . | . . . . . . . Derelict Logs Recovered . | . . . . . . . Drone Launches . | . . . . . . . Drone Recoveries . | . . . . . . . Exploration | -11 -10 -9 -8 -7 -6 -6 ------------- Run | Scr Mat Mat Mat Fac Fac Was Turns Passed 2181 | 95 36 130 710 479 664 67 Spaces Moved 2655 | 68 67 226 913 531 758 92 Core 2655 | 68 67 226 913 531 758 92 Treads . | . . . . . . . Legs . | . . . . . . . Wheels . | . . . . . . . Hover . | . . . . . . . Flight . | . . . . . . . Fastest Speed 50 | 50 50 50 50 50 50 50 Average Speed 56 | 50 50 50 50 50 71 69 Slowest Speed 150 | 50 50 50 150 50 100 100 Overloaded Moves . | . . . . . . . Propulsion Burnouts . | . . . . . . . Robots Hopped . | . . . . . . . Cave-ins Triggered . | . . . . . . . Exploration Rate (%) 31 | 3 15 34 55 17 26 72 Regions Visited 6 Branch Regions . Pre-discovered Areas 1 | . 1 . . . . . Known Exits Taken 2 | . . . 1 1 . . Unknown Exits Taken 3 | 1 1 1 . . . . Scrap Searched . | . . . . . . . Spaces Dug 17 | . . . 11 . 6 . Terrain Destroyed 105 | . . 7 40 . 58 . Melee 17 | . . . 11 . 6 . Projectile . | . . . . . . . AOE 88 | . . 7 29 . 52 . Terrain Rammed . | . . . . . . . Walls Destroyed . | . . . . . . . Machines Disabled . | . . . . . . . Actions | -11 -10 -9 -8 -7 -6 -6 --------- Run | Scr Mat Mat Mat Fac Fac Was Total 3092 | 100 68 236 1052 694 847 95 Wait 201 | 12 . . 42 105 42 . Move 2650 | 67 66 225 912 530 758 92 Hop . | . . . . . . . Pick Up 19 | 2 2 1 9 3 2 . Fast Attach 27 | 3 . . 8 5 10 1 Attach 14 | . . . 8 1 5 . Detach 12 | 1 . . 5 . 5 1 Swap 8 | . . 2 5 1 . . Drop 13 | . . 1 7 5 . . Fire 28 | 15 . 7 3 . 3 . Melee 93 | . . . 53 25 15 . Ram 14 | . . . . 6 7 1 Kick . | . . . . . . . Crush . | . . . . . . . Escape Stasis 13 | . . . . 13 . . Rewire . | . . . . . . . Trap . | . . . . . . . Miscellaneous . | . . . . . . . Route ------- -11/Scrapyard -10/Materials -9/Materials (discovered 2 exits: *Mat / [*Min]) -8/Materials -7/Factory (discovered 4 exits: *Fac x4) -6/Factory -6/Waste (discovered 1 exit: [*Fac]) History --------- Turn | Location | Event 16 | -11/Scrapyard | Discovered new exit (range 16) 96 | -11/Scrapyard | Entered Materials 120 | -10/Materials | Discovered new exit (range 10) 132 | -10/Materials | Entered another Materials area 132 | -9/Materials | Evolved 2 slots: Utility x2 154 | -9/Materials | Discovered new exit (range 11) 251 | -9/Materials | Discovered new exit (range 15) 262 | -9/Materials | Entered another Materials area 262 | -8/Materials | Evolved 2 slots: Utility x2 315 | -8/Materials | Build established: Mutant 472 | -8/Materials | Repaired Blade Saw 828 | -8/Materials | Discovered new exit (range 15) 844 | -8/Materials | Lost 4 parts (1p2u1w) 967 | -8/Materials | Garrison activated, responded to threat 971 | -8/Materials | Identified exit to Factory 972 | -8/Materials | Entered Factory 972 | -7/Factory | Evolved 2 slots: Utility x2 1101 | -7/Factory | Build established: Hacker-Mutant 1320 | -7/Factory | Identified exit to Factory 1451 | -7/Factory | Entered another Factory area 1451 | -6/Factory | Evolved 2 slots: Utility x2 1495 | -6/Factory | Lost 5 parts (1p3u1w) 1773 | -6/Factory | Repaired Imp. Grenade Launcher 2035 | -6/Factory | Lost 4 parts (2u2w) 2042 | -6/Factory | Spotted B-75 Beast 2085 | -6/Factory | Core integrity fell below 50% 2112 | -6/Factory | Local machine network offline 2115 | -6/Factory | Core integrity fell below 20% 2115 | -6/Factory | Manually triggered Chute Trap 2115 | -6/Factory | Sucked down chute 2115 | -6/Factory | Entered Waste 2130 | -6/Waste | EMP discharged 2151 | -6/Waste | Spotted C-40 Crusher 2153 | -6/Waste | Spotted C-40 Crusher 2155 | -6/Waste | Crushed by Compactor (1 part destroyed, 2 dropped) 2158 | -6/Waste | Spotted C-40 Crusher 2158 | -6/Waste | Spotted C-40 Crusher 2164 | -6/Waste | Crushed by Compactor (1 part destroyed) 2165 | -6/Waste | Spotted C-40 Crusher 2171 | -6/Waste | Discovered new exit (range 11) 2171 | -6/Waste | Spotted C-40 Crusher 2182 | -6/Waste | Destroyed by C-40 Crusher with Compactor Last Messages --------------- 02109_ Destabilizing: Core damaged (-8). 02109_ Core Analyzer destroyed. 02110_ Knocked back. 02112_ ALERT: Suspected network compromise, local machines offline for diagnostic review. 02114_ Knocked back. 02115_ Triggered Chute Trap. 02115_ A hatch slides open and sucks a vortex of air into the floor. LOCATION=UNKNOWN GOAL=ESCAPE 02117_ Acquired Lrn. Sensor Array. 02120_ ALERT: Foreign system detected. Charging EMP. 02130_ Dynamic Insulation System prevented system corruption. 02155_ Dynamic Insulation System crushed. 02155_ Visual Processing Unit crushed. 02155_ Hacking Suite crushed. 02164_ Adv. Signal Interpreter crushed. 02171_ EXIT=FOUND 02176_ Slammed into C-40 Crusher. 02176_ Destabilizing: System corrupted (+2). Map ----- +----------------------------------------------------+ | ???????????????????????????????????????????????? | | #######????????????????????????????????????????? | | #????????????????????????????????????????? | | #????????????????????????????????????????? | | #????????????????????????????????????????? | | #????????????????????????????????????????? | | #????????????????????????????????????????? | | #????????????????????????????????????????? | | ?????????????????????????????????????????? | | ??????######??????????????????????????????? | | ! #??????# #??????????????????????????????? | | #??????# #??????????????????????????????? | | #??????# #??????????????????????????????? | | #??????# #??????????????????????????????? | | ######## ###????????????????????????????? | | = #????????????????????????????? | | #????????????????????????????? | | #????????????????????????????? | | #????????????????????????????? | | ######## ###????????????????????????????? | | #??????# #??############????????????????? | | #??????# #??# #????????????????? | | #??????# #??# #????????????????? | | #??????# CC#### #????????????????? | | #??????# #????????????????? | | #??????# CC @ #????????????????? | | #??????# CC CC< #????????????????? | | #??????# CC #????????????????? | | #??????# #### #????????????????? | | #??????# #??# * #????????????????? | | ???????# #??# #????????????????? | | ???????????# #??############????????????????? | | ???????????# #??????????????????????????????? | | ??????????? ???????????????????????????????? | | ?????????? ???????????????????????????????? | | ????????? ???????????????????????????????? | | ???????? ] ???????????????????????????????? | | ???????##### ???????????????????????????????? | | ???????????# ???????????????????????????????? | | ???????????? ???????????????????????????????? | | ???????????????????????????????????????????????? | | ???????????????????????????????????????????????? | | ???????????????????????????????????????????????? | | ???????????????????????????????????????????????? | | ???????????????????????????????????????????????? | | ???????????????????????????????????????????????? | | ???????????????????????????????????????????????? | | ???????????????????????????????????????????????? | | ???????????????????????????????????????????????? | | ???????????????????????????????????????????????? | +----------------------------------------------------+ Best States ------------- Heat Dissipation 37 Energy Generation 18 Energy Capacity 310 Matter Stores 300 Matter Capacity 300 Sight Range 18 Robot Scan Range 18 Terrain Scan Density 10 Additional Mass Support 6 EM Shielding 2 Corruption Block 4 Evasion (%) 50 Core Analysis 6 Offensive Hacking 30 Defensive Hacking 12 Authchip Count 1 Item Schematics ----------------- Imp. System Shield | -6/Factory | Hacked Robot Schematics ------------------ H-66 Slayer | -6/Factory | Hacked Fabricated ------------ Nothing Alien Tech Used ----------------- None Achievements -------------- None Challenges ------------ None Game ------ Seed TrapStealthField Manual? 0 Play Time 00:32:05 Cumulative 655.9 hours Start 2022.06.28 @ 16:15:55 End 2022.06.29 @ 04:55:35 Sessions 3 Manual Loads 0 Difficulty Rogue Special Mode None Game No. 539 Rogue 539 Adventurer 0 Explorer 0 Win Type - Total 8 Types 7/0/0/1/0/0/0/0/0 Lore% 75 Gallery% 86 Achievement% 69 Wizard Run 0 Options --------- ASCII 0 Keyboard 1 Movement Numpad Keybinds 0 Fullscreen 1 Font 12/Terminus Map View 83x54 Tactical HUD 1 Map Filters NONE Filters NONE Steam 1 RUN: 49f6891f-4b98-43ad-a07d-450bb803001b